[Event "46th GER-ch Rapid 2020"]
[Site "Plochingen"]
[Date "2020.09.20"]
[Round "9.5"]
[White "Spiess, Gunter"]
[Black "Meissner, Felix"]
[Result "1/2-1/2"]
[ECO "A41"]
[WhiteElo "2391"]
[BlackElo "2362"]
[Annotator "ChessBase"]
[PlyCount "96"]
[EventDate "2020.09.19"]
[EventType "swiss"]
[EventCountry "GER"]
[SourceTitle "playchess.com"]
[Source "ChessBase"]
[SourceQuality "1"]
[TimeControl "900+10"]

1. d4 {[%emt 0:00:00]} g6 {[%emt 0:00:02]} 2. c4 {[%emt 0:00:00]} Bg7 {[%emt 0:00:02]} 3. Nf3 {[%emt 0:00:00]} d6 {[%emt 0:00:14]} 4. Nc3 {[%emt 0:00:02]} Nc6 {[%emt 0:00:11]} 5. d5 {[%emt 0:00:49]} Nb8 {[%emt 0:00:01]} 6. e4 {[%emt 0:00:06]} e6 {[%emt 0:00:29]} 7. dxe6 {[%emt 0:00:28]} fxe6 {[%emt 0:00:35]} 8. Bg5 {[%emt 0:00:33]} Ne7 {[%emt 0:00:16]} 9. Qd2 {[%emt 0:00:11]} Nbc6 {[%emt 0:01:26]} 10. Be2 {[%emt 0:00:26]} O-O {[%emt 0:00:56]} 11. O-O {[%emt 0:00:34]} b6 {[%emt 0:01:31]} 12. Rad1 {[%emt 0:02:04]} a6 {[%emt 0:01:02]} 13. Rfe1 {[%emt 0:02:14]} Qe8 {[%emt 0:00:45]} 14. h3 {[%emt 0:00:03]} Bb7 {[%emt 0:00:23]} 15. Be3 {[%emt 0:00:23]} Nd8 {[%emt 0:01:15]} 16. Ng5 {[%emt 0:01:23]} Nec6 {[%emt 0:00:28]} 17. h4 {[%emt 0:01:54]} Nf7 {[%emt 0:02:00]} 18. Nf3 {[%emt 0:01:15]} Rd8 {[%emt 0:00:26]} 19. Nd4 {[%emt 0:00:27]} Qe7 {[%emt 0:00:55]} 20. Nxc6 {[%emt 0:00:51]} Bxc6 {[%emt 0:00:02]} 21. g3 {[%emt 0:00:21]} Bxc3 {[%emt 0:00:23]} 22. Qxc3 {[%emt 0:00:02]} Bxe4 {[%emt 0:00:05]} 23. f3 {[%emt 0:00:25]} Bb7 {[%emt 0:00:09]} 24. Bf4 {[%emt 0:00:26]} e5 {[%emt 0:00:16]} 25. Bc1 {[%emt 0:00:13]} Rde8 {[%emt 0:00:38]} 26. Bf1 {[%emt 0:00:20]} Qf6 {[%emt 0:00:20]} 27. Bg2 {[%emt 0:00:18]} Nd8 {[%emt 0:00:09]} 28. Bh6 {[%emt 0:00:25]} Rf7 {[%emt 0:00:16]} 29. Bg5 {[%emt 0:00:02]} Qf5 {[%emt 0:00:11]} 30. Bxd8 {[%emt 0:00:25]} Rxd8 {[%emt 0:00:03]} 31. Rxe5 {[%emt 0:00:06]} Qf6 {[%emt 0:00:56]} 32. Re3 {[%emt 0:00:03]} Qxc3 {[%emt 0:00:07]} 33. Rxc3 {[%emt 0:00:01]} Re8 {[%emt 0:00:04]} 34. Rd2 {[%emt 0:00:13]} Rfe7 {[%emt 0:00:12]} 35. Rcc2 {[%emt 0:00:45]} Re1+ {[%emt 0:00:30]} 36. Kf2 {[%emt 0:00:01]} Kf7 {[%emt 0:00:48]} 37. Re2 {[%emt 0:00:26]} R8xe2+ {[%emt 0:00:12]} 38. Rxe2 {[%emt 0:00:01]} Rc1 {[%emt 0:00:12]} 39. b3 {[%emt 0:00:10]} a5 {[%emt 0:00:05]} 40. Bh3 {[%emt 0:00:32]} a4 {[%emt 0:00:22]} 41. Be6+ {[%emt 0:00:37]} Kf8 {[%emt 0:00:13]} 42. bxa4 {[%emt 0:00:56]} Rc3 {[%emt 0:00:30]} 43. Re3 {[%emt 0:00:16]} Rc2+ {[%emt 0:00:01]} 44. Re2 {[%emt 0:00:01]} Rc1 {[%emt 0:00:57]} 45. f4 {[%emt 0:00:35]} Rc3 {[%emt 0:00:01]} 46. Re3 {[%emt 0:00:01]} Rc2+ {[%emt 0:00:01]} 47. Re2 {[%emt 0:00:01]} Rc3 {[%emt 0:00:19]} 48. Re3 {[%emt 0:00:02]} Rc2+ {[%emt 0:00:01]} 1/2-1/2

[Event "46th GER-ch Rapid 2020"]
[Site "Plochingen"]
[Date "2020.09.20"]
[Round "9.6"]
[White "Schmaltz, Roland"]
[Black "Langrock, Hannes"]
[Result "1/2-1/2"]
[ECO "B82"]
[WhiteElo "2449"]
[BlackElo "2352"]
[Annotator "ChessBase"]
[PlyCount "29"]
[EventDate "2020.09.19"]
[EventType "swiss"]
[EventCountry "GER"]
[SourceTitle "playchess.com"]
[Source "ChessBase"]
[SourceQuality "1"]
[TimeControl "900+10"]

1. e4 {[%emt 0:00:00]} c5 {[%emt 0:00:00]} 2. Nf3 {[%emt 0:00:00]} e6 {[%emt 0:00:00]} 3. d4 {[%emt 0:00:00]} cxd4 {[%emt 0:00:00]} 4. Nxd4 {[%emt 0:00:00]} Nf6 {[%emt 0:00:00]} 5. Nc3 {[%emt 0:00:00]} Nc6 {[%emt 0:00:00]} 6. Nb3 {[%emt 0:00:23]} Be7 {[%emt 0:00:41]} 7. Bd3 {[%emt 0:00:09]} a6 {[%emt 0:00:06]} 8. f4 {[%emt 0:00:03]} d6 {[%emt 0:00:12]} 9. Qf3 {[%emt 0:00:04]} Qc7 {[%emt 0:00:31]} 10. g4 {[%emt 0:00:26]} b5 {[%emt 0:01:10]} 11. g5 {[%emt 0:00:05]} Nd7 {[%emt 0:00:12]} 12. Bd2 {[%emt 0:01:13]} Bb7 {[%emt 0:00:10]} 13. h4 {[%emt 0:01:48]} Nb4 {[%emt 0:02:06]} 14. a3 {[%emt 0:00:30]} Nxd3+ {[%emt 0:00:04]} 15. cxd3 {[%emt 0:00:03]} 1/2-1/2

[Event "46th GER-ch Rapid 2020"]
[Site "Plochingen"]
[Date "2020.09.20"]
[Round "9.7"]
[White "Milare, Tyron"]
[Black "Frischmann, Rick"]
[Result "1-0"]
[ECO "D07"]
[WhiteElo "2176"]
[BlackElo "2347"]
[Annotator "ChessBase"]
[PlyCount "137"]
[EventDate "2020.09.19"]
[EventType "swiss"]
[EventCountry "GER"]
[SourceTitle "playchess.com"]
[Source "ChessBase"]
[SourceQuality "1"]
[TimeControl "900+10"]

1. d4 {[%emt 0:00:00]} d5 {[%emt 0:00:00]} 2. Nf3 {[%emt 0:00:00]} Nc6 {[%emt 0:00:00]} 3. c4 {[%emt 0:00:00]} Bg4 {[%emt 0:00:00]} 4. Nc3 {[%emt 0:00:00]} e6 {[%emt 0:00:00]} 5. Bg5 {[%emt 0:00:12]} Be7 {[%emt 0:00:08]} 6. Bxe7 {[%emt 0:00:02]} Ngxe7 {[%emt 0:01:32]} 7. e3 {[%emt 0:00:03]} O-O {[%emt 0:00:04]} 8. h3 {[%emt 0:00:02]} Bh5 {[%emt 0:00:10]} 9. Be2 {[%emt 0:00:34]} Qd6 {[%emt 0:04:01]} 10. cxd5 {[%emt 0:00:49]} exd5 {[%emt 0:00:03]} 11. O-O {[%emt 0:00:12]} Nd8 {[%emt 0:00:03]} 12. Ne5 {[%emt 0:00:10]} Bxe2 {[%emt 0:00:03]} 13. Qxe2 {[%emt 0:00:01]} c6 {[%emt 0:00:10]} 14. Rab1 {[%emt 0:00:22]} Ne6 {[%emt 0:00:16]} 15. b4 {[%emt 0:00:12]} a6 {[%emt 0:00:01]} 16. a4 {[%emt 0:00:01]} Rfe8 {[%emt 0:00:20]} 17. Qf3 {[%emt 0:00:40]} f6 {[%emt 0:00:35]} 18. Nd3 {[%emt 0:00:02]} Rac8 {[%emt 0:02:01]} 19. Rfc1 {[%emt 0:01:37]} Rc7 {[%emt 0:00:06]} 20. Nc5 {[%emt 0:00:30]} Ng5 {[%emt 0:01:46]} 21. Qf4 {[%emt 0:00:50]} Qxf4 {[%emt 0:00:47]} 22. exf4 {[%emt 0:00:01]} Nf7 {[%emt 0:00:01]} 23. Re1 {[%emt 0:00:21]} Ra8 {[%emt 0:00:50]} 24. Ne6 {[%emt 0:00:33]} Rd7 {[%emt 0:00:02]} 25. Nc5 {[%emt 0:00:07]} Rc7 {[%emt 0:00:01]} 26. g4 {[%emt 0:01:51]} Nd6 {[%emt 0:02:11]} 27. b5 {[%emt 0:01:37]} axb5 {[%emt 0:01:07]} 28. axb5 {[%emt 0:00:02]} Kf7 {[%emt 0:00:05]} 29. b6 {[%emt 0:00:50]} Rcc8 {[%emt 0:00:00]} 30. Re6 {[%emt 0:00:40]} Rd8 {[%emt 0:00:03]} 31. Rxd6 {[%emt 0:00:34]} Rxd6 {[%emt 0:00:01]} 32. Nxb7 {[%emt 0:00:01]} Nc8 {[%emt 0:01:05]} 33. Nxd6+ {[%emt 0:00:42]} Nxd6 {[%emt 0:00:02]} 34. Ne2 {[%emt 0:01:08]} Rb8 {[%emt 0:00:59]} 35. Nc3 {[%emt 0:00:53]} Ke7 {[%emt 0:00:02]} 36. Na4 {[%emt 0:00:05]} Nb7 {[%emt 0:01:15]} 37. Nc5 {[%emt 0:00:53]} Kd6 {[%emt 0:00:19]} 38. Na6 {[%emt 0:00:35]} Re8 {[%emt 0:00:23]} 39. Kg2 {[%emt 0:00:25]} Re4 {[%emt 0:00:12]} 40. Nc5 {[%emt 0:00:01]} Re7 {[%emt 0:00:13]} 41. Kf3 {[%emt 0:00:28]} g6 {[%emt 0:00:03]} 42. h4 {[%emt 0:00:10]} h6 {[%emt 0:00:03]} 43. h5 {[%emt 0:00:05]} g5 {[%emt 0:00:04]} 44. fxg5 {[%emt 0:00:03]} fxg5 {[%emt 0:00:02]} 45. Kg3 {[%emt 0:00:03]} Rf7 {[%emt 0:00:04]} 46. Rb2 {[%emt 0:00:34]} Re7 {[%emt 0:00:32]} 47. Nxb7+ {[%emt 0:00:29]} Rxb7 {[%emt 0:00:01]} 48. f4 {[%emt 0:00:01]} gxf4+ {[%emt 0:00:05]} 49. Kxf4 {[%emt 0:00:01]} c5 {[%emt 0:00:54]} 50. dxc5+ {[%emt 0:00:02]} Kxc5 {[%emt 0:00:01]} 51. Ke5 {[%emt 0:00:09]} Re7+ {[%emt 0:00:32]} 52. Kf6 {[%emt 0:00:01]} Rb7 {[%emt 0:00:00]} 53. g5 {[%emt 0:00:17]} hxg5 {[%emt 0:00:02]} 54. Kxg5 {[%emt 0:00:01]} d4 {[%emt 0:00:05]} 55. Kf4 {[%emt 0:00:55]} Kc4 {[%emt 0:00:06]} 56. Rc2+ {[%emt 0:00:47]} Kd5 {[%emt 0:00:23]} 57. Rb2 {[%emt 0:00:06]} Kc4 {[%emt 0:00:07]} 58. h6 {[%emt 0:00:22]} Kc3 {[%emt 0:00:02]} 59. h7 {[%emt 0:00:30]} Rxh7 {[%emt 0:00:01]} 60. b7 {[%emt 0:00:01]} Rf7+ {[%emt 0:00:04]} 61. Ke4 {[%emt 0:00:21]} Re7+ {[%emt 0:00:01]} 62. Kf3 {[%emt 0:00:04]} Rf7+ {[%emt 0:00:01]} 63. Kg2 {[%emt 0:00:09]} Rg7+ {[%emt 0:00:58]} 64. Kf1 {[%emt 0:00:04]} Rf7+ {[%emt 0:00:10]} 65. Ke1 {[%emt 0:00:04]} Re7+ {[%emt 0:00:10]} 66. Kd1 {[%emt 0:00:03]} Rh7 {[%emt 0:00:18]} 67. b8=Q {[%emt 0:00:31]} Rh1+ {[%emt 0:00:02]} 68. Ke2 {[%emt 0:00:01]} Rh2+ {[%emt 0:00:02]} 69. Qxh2 {[%emt 0:00:02]} 1-0

[Event "46th GER-ch Rapid 2020"]
[Site "Plochingen"]
[Date "2020.09.20"]
[Round "9.8"]
[White "Kopylov, Michael"]
[Black "Muranyi, Karl-Jasmin"]
[Result "1-0"]
[ECO "A56"]
[WhiteElo "2408"]
[BlackElo "2331"]
[Annotator "ChessBase"]
[PlyCount "69"]
[EventDate "2020.09.19"]
[EventType "swiss"]
[EventCountry "GER"]
[SourceTitle "playchess.com"]
[Source "ChessBase"]
[SourceQuality "1"]
[TimeControl "900+10"]

1. d4 {[%emt 0:00:00]} Nf6 {[%emt 0:00:00]} 2. c4 {[%emt 0:00:00]} c5 {[%emt 0:00:00]} 3. d5 {[%emt 0:00:00]} e5 {[%emt 0:00:00]} 4. Nc3 {[%emt 0:00:02]} d6 {[%emt 0:00:00]} 5. e4 {[%emt 0:00:03]} Be7 {[%emt 0:00:05]} 6. Nf3 {[%emt 0:00:22]} Nbd7 {[%emt 0:00:04]} 7. Bd3 {[%emt 0:00:13]} Nf8 {[%emt 0:00:03]} 8. O-O {[%emt 0:00:10]} Ng6 {[%emt 0:00:02]} 9. Re1 {[%emt 0:00:01]} O-O {[%emt 0:00:17]} 10. Rb1 {[%emt 0:00:02]} a5 {[%emt 0:00:03]} 11. a3 {[%emt 0:00:17]} Bg4 {[%emt 0:00:33]} 12. h3 {[%emt 0:00:03]} Bd7 {[%emt 0:00:02]} 13. b4 {[%emt 0:00:05]} axb4 {[%emt 0:00:01]} 14. axb4 {[%emt 0:00:01]} b6 {[%emt 0:00:01]} 15. Kh2 {[%emt 0:00:39]} h6 {[%emt 0:00:04]} 16. Bd2 {[%emt 0:00:34]} Nh7 {[%emt 0:00:02]} 17. Qe2 {[%emt 0:03:08]} Ng5 {[%emt 0:00:22]} 18. bxc5 {[%emt 0:00:40]} Nxf3+ {[%emt 0:00:20]} 19. Qxf3 {[%emt 0:00:05]} bxc5 {[%emt 0:00:01]} 20. Nb5 {[%emt 0:00:56]} Ra2 {[%emt 0:01:25]} 21. Re2 {[%emt 0:01:07]} Bxb5 {[%emt 0:02:19]} 22. cxb5 {[%emt 0:02:20]} Ra3 {[%emt 0:00:02]} 23. Bc1 {[%emt 0:00:03]} Ra4 {[%emt 0:00:46]} 24. b6 {[%emt 0:01:12]} Bg5 {[%emt 0:00:12]} 25. Bxg5 {[%emt 0:00:39]} Qxg5 {[%emt 0:00:25]} 26. Bb5 {[%emt 0:00:28]} Rd4 {[%emt 0:00:48]} 27. b7 {[%emt 0:01:39]} Rb8 {[%emt 0:00:07]} 28. Bc6 {[%emt 0:00:12]} Qd8 {[%emt 0:01:41]} 29. Ra2 {[%emt 0:00:44]} Ne7 {[%emt 0:00:07]} 30. Ra8 {[%emt 0:00:08]} Nxc6 {[%emt 0:00:12]} 31. dxc6 {[%emt 0:00:01]} Rxa8 {[%emt 0:00:00]} 32. bxa8=Q Qxa8 {[%emt 0:00:01]} 33. c7 {[%emt 0:00:04]} Rb4 {[%emt 0:00:07]} 34. Rxb4 {[%emt 0:00:04]} cxb4 {[%emt 0:00:01]} 35. Qf5 {[%emt 0:00:01]} 1-0

[Event "46th GER-ch Rapid 2020"]
[Site "Plochingen"]
[Date "2020.09.20"]
[Round "9.9"]
[White "Gschnitzer, Oswald"]
[Black "Wendler, David"]
[Result "1-0"]
[ECO "A30"]
[WhiteElo "2373"]
[BlackElo "2249"]
[Annotator "ChessBase"]
[PlyCount "61"]
[EventDate "2020.09.19"]
[EventType "swiss"]
[EventCountry "GER"]
[SourceTitle "playchess.com"]
[Source "ChessBase"]
[SourceQuality "1"]
[TimeControl "900+10"]

1. Nf3 {[%emt 0:00:00]} c5 {[%emt 0:00:00]} 2. b3 {[%emt 0:00:01]} Nf6 {[%emt 0:01:06]} 3. Bb2 {[%emt 0:00:04]} Nc6 {[%emt 0:00:05]} 4. e3 {[%emt 0:00:12]} g6 {[%emt 0:00:20]} 5. c4 {[%emt 0:01:02]} Bg7 {[%emt 0:00:11]} 6. Be2 {[%emt 0:00:02]} O-O {[%emt 0:00:04]} 7. O-O {[%emt 0:00:15]} b6 {[%emt 0:00:41]} 8. d4 {[%emt 0:00:54]} cxd4 {[%emt 0:00:11]} 9. exd4 {[%emt 0:00:18]} d5 {[%emt 0:00:10]} 10. Nc3 {[%emt 0:00:05]} Bb7 {[%emt 0:00:55]} 11. Re1 {[%emt 0:01:03]} Rc8 {[%emt 0:00:37]} 12. Ne5 {[%emt 0:01:22]} dxc4 {[%emt 0:03:28]} 13. Nxc6 {[%emt 0:00:02]} Bxc6 {[%emt 0:01:37]} 14. bxc4 {[%emt 0:00:02]} e6 {[%emt 0:00:22]} 15. Qb3 {[%emt 0:01:02]} Qd7 {[%emt 0:01:51]} 16. Rad1 {[%emt 0:00:10]} Rfd8 {[%emt 0:00:38]} 17. Rd2 {[%emt 0:06:14]} Qb7 {[%emt 0:00:18]} 18. Bf1 {[%emt 0:00:14]} Qa8 {[%emt 0:02:18]} 19. Red1 {[%emt 0:00:11]} Ne4 {[%emt 0:00:35]} 20. Nxe4 {[%emt 0:00:06]} Bxe4 {[%emt 0:00:01]} 21. Ba3 {[%emt 0:00:39]} Bh6 {[%emt 0:00:23]} 22. Re2 {[%emt 0:00:10]} Bg7 {[%emt 0:00:17]} 23. f3 {[%emt 0:00:53]} Bb7 {[%emt 0:00:49]} 24. Red2 {[%emt 0:00:09]} Qb8 {[%emt 0:00:33]} 25. d5 {[%emt 0:01:12]} exd5 {[%emt 0:00:01]} 26. cxd5 {[%emt 0:00:01]} Rc3 {[%emt 0:00:01]} 27. Qa4 {[%emt 0:00:05]} Qe5 {[%emt 0:01:30]} 28. Bb2 {[%emt 0:00:22]} Qe3+ {[%emt 0:00:08]} 29. Kh1 {[%emt 0:00:01]} Rc5 {[%emt 0:00:21]} 30. Bxg7 {[%emt 0:00:09]} Kxg7 {[%emt 0:00:00]} 31. d6 {[%emt 0:00:14]} 1-0

[Event "46th GER-ch Rapid 2020"]
[Site "Plochingen"]
[Date "2020.09.20"]
[Round "9.10"]
[White "Petkidis, Anthony"]
[Black "Richter, Christian"]
[Result "1/2-1/2"]
[ECO "C92"]
[WhiteElo "2406"]
[BlackElo "2348"]
[Annotator "ChessBase"]
[PlyCount "24"]
[EventDate "2020.09.19"]
[EventType "swiss"]
[EventCountry "GER"]
[SourceTitle "playchess.com"]
[Source "ChessBase"]
[SourceQuality "1"]
[TimeControl "900+10"]

1. e4 {[%emt 0:00:00]} e5 {[%emt 0:00:00]} 2. Nf3 {[%emt 0:00:00]} Nc6 {[%emt 0:00:00]} 3. Bb5 {[%emt 0:00:00]} a6 {[%emt 0:00:00]} 4. Ba4 {[%emt 0:00:00]} Nf6 {[%emt 0:00:00]} 5. O-O {[%emt 0:00:03]} b5 {[%emt 0:00:04]} 6. Bb3 {[%emt 0:00:02]} Be7 {[%emt 0:00:04]} 7. Re1 {[%emt 0:00:06]} d6 {[%emt 0:00:03]} 8. c3 {[%emt 0:00:03]} O-O {[%emt 0:00:04]} 9. h3 {[%emt 0:00:03]} Re8 {[%emt 0:00:04]} 10. Ng5 {[%emt 0:00:13]} Rf8 {[%emt 0:00:03]} 11. Nf3 {[%emt 0:00:02]} Re8 {[%emt 0:00:06]} 12. Ng5 {[%emt 0:00:05]} Rf8 {[%emt 0:00:04]} 1/2-1/2